Cogmind - Beta 15 @@@ ROGUE MODE // 2025.06.02 @ 15:44:25 Player: Fleshy Vegetable Bird Result: Destroyed by G-50 Soldier with Heavy Laser Performance ------------- Evolutions (3) 1500 Regions Visited (11) 2200 Robots Destroyed (180) 900 Value Destroyed (7189) 7189 Prototype IDs (34) 680 Alien Tech Used (0) 0 Bonus (1276) 1276 TOTAL SCORE: 13745 Bonus ------- High Alert Combat Kills 304 Follower Combat Kills 172 Entered Garrisons 200 Met Data Miner 300 Acquired ECA 300 Cogmind --------- Core Integrity 0/700 Matter 216/300 Energy 340/340 System Corruption 8% Temperature Cool (19) Movement Rolling (131) Ox3 Location -6/Proximity Caves Parts ------- > --- POWER (1) -------- Heavy Antimatter Reactor > --- PROPULSION (4) --- Improved Treads Wheel Wheel Compact Wheel > --- UTILITY (5) ------ Huge Storage Unit Machine Analyzer Core Analyzer Improved Medium Armor Plating Focal Shield > --- WEAPON (3) ------- Cooled Phase Cannon KE Penetrator > --- INVENTORY (25) --- Improved Heat Sink Energy Well (350) Encrypted Comm Array Melee Analysis Suite Matter Filter Energy Filter Microactuators Advanced Remote Shield Improved Recalibrator Plasma Rifle Phase Cannon Cooled Phase Cannon Flak Gun Advanced EMP Blaster Multitool Blade Saw Dirty Bomb Trap Dirty Bomb Trap Dirty Bomb Trap Fire Trap Fire Trap Fire Trap Fire Trap Peak State ------------ > --- POWER ------------ Micro Nuclear Core > --- PROPULSION ------- Improved Treads Experimental Flexi-carbon Leg Wheel Compact Wheel > --- UTILITY ---------- Huge Storage Unit Machine Analyzer Core Analyzer Improved Medium Armor Plating Advanced Remote Shield > --- WEAPON ----------- Cooled Phase Cannon Missile Launcher Blade Saw > --- INVENTORY -------- Wheel Improved Heat Sink Energy Well Encrypted Comm Array Melee Analysis Suite Matter Filter Energy Filter Microactuators Focal Shield Improved Recalibrator Plasma Rifle Phase Cannon Cooled Phase Cannon Flak Gun KE Penetrator Advanced EMP Blaster Heavy Rocket Launcher Multitool Dirty Bomb Trap Dirty Bomb Trap Dirty Bomb Trap Fire Trap Fire Trap Fire Trap Fire Trap [Rating: 59] Favorites ----------- Power Micro Nuclear Core Engine Improved Ion Engine Power Core Micro Nuclear Core Reactor Heavy Antimatter Reactor Propulsion Wheel Treads Spiked Treads Leg Experimental Flexi-carbon Leg Wheel Wheel Hover Unit Gravmag System Utility Medium Storage Unit Device Experimental Sensor Array Storage Medium Storage Unit Processor Machine Analyzer Protection Light Armor Plating Weapon Enhanced Autogun Energy Gun Plasma Rifle Energy Cannon Cooled Phase Cannon Ballistic Gun Enhanced Autogun Ballistic Cannon Magnetic Acceleration Cannon Launcher Grenade Launcher Special Weapon Multitool Impact Weapon Heavy Flail Slashing Weapon Katana Build | -11 -10 -10 -10 -8 -8 -8 -7 -7 -7 -7 -6 ------- Run | Yrd Mat Min Sub Mat Gar Mat Fac Low Low Dat Pro Slots Evolved 6 | . . . . 4 . . 2 . . . . Power . | . . . . . . . . . . . . Propulsion 2 | . . . . 1 . . 1 . . . . Utility 3 | . . . . 2 . . 1 . . . . Weapon 1 | . . . . 1 . . . . . . . Parts Attached 133 | 7 2 6 16 25 13 7 37 10 4 . 6 Power 18 | 1 . 1 3 3 2 . 5 2 . . 1 Engine 8 | 1 . 1 3 3 . . . . . . . Core 9 | . . . . . 2 . 5 2 . . . Reactor 1 | . . . . . . . . . . . 1 Propulsion 36 | 2 . 1 4 9 1 2 12 4 . . 1 Treads 11 | . . . 2 2 1 2 3 1 . . . Leg 1 | . . . . . . . . . . . 1 Wheel 20 | 2 . 1 2 7 . . 5 3 . . . Hover 4 | . . . . . . . 4 . . . . Flight . | . . . . . . . . . . . . Utility 36 | 2 . 2 3 5 5 1 11 3 2 . 2 Device 10 | 1 . 2 . . . . 4 1 . . 2 Storage 7 | 1 . . 2 1 1 . 2 . . . . Processor 6 | . . . . 1 . . 3 1 1 . . Hackware . | . . . . . . . . . . . . Protection 13 | . . . 1 3 4 1 2 1 1 . . Artifact . | . . . . . . . . . . . . Weapon 43 | 2 2 2 6 8 5 4 9 1 2 . 2 Energy Gun 11 | 2 . . 3 3 1 1 1 . . . . Energy Cannon 1 | . . . . . . . . . . . 1 Ballistic Gun 17 | . 2 2 . 4 3 1 3 . 1 . 1 Ballistic Cannon 2 | . . . . 1 . 1 . . . . . Launcher 5 | . . . 2 . . 1 . 1 1 . . Special Weapon 1 | . . . . . . . 1 . . . . Impact Weapon 3 | . . . . . . . 3 . . . . Slashing Weapon 3 | . . . 1 . 1 . 1 . . . . Piercing Weapon . | . . . . . . . . . . . . Special Melee Weapon . | . . . . . . . . . . . . Unidentified Prototypes 13 | . . 1 . 6 . 1 1 . . . 4 Parts Lost 37 | . . 1 4 3 3 2 14 6 1 . 3 Power 6 | . . . 1 1 . . 1 2 . . 1 Propulsion 14 | . . . 2 1 1 2 4 3 1 . . Utility 9 | . . 1 . 1 2 . 4 1 . . . Weapon 8 | . . . 1 . . . 5 . . . 2 Highest Loss Streak 6 | . . 1 1 1 2 1 6 4 1 . 2 To Critical Strikes 1 | . . . . . . . 1 . . . . Average Backups 11 | 2 7 8 13 15 9 8 8 14 19 17 16 Power . | . . . 2 1 . . . . . . . Propulsion 1 | 1 2 1 2 . . . 1 1 . . . Utility 5 | . 1 2 4 8 6 5 2 5 8 8 8 Weapon 3 | . 3 4 3 4 1 2 3 4 8 7 6 Tool/Special . | . . . . . . . . . . . . Unused Backups 45 | 3 3 2 2 21 3 1 2 1 2 . 5 Power 7 | . . . . 6 . . . 1 . . . Propulsion 11 | 3 2 . 1 2 1 . 1 . 1 . . Utility 20 | . . 2 . 10 2 1 1 . . . 4 Weapon 7 | . 1 . 1 3 . . . . 1 . 1 Tool/Special . | . . . . . . . . . . . . Average Slot Usage (%) 91 | . 100 99 89 91 99 93 80 97 96 100 98 Engine 6 | . 14 14 12 8 5 . . . . . . Core 3 | . . . . . 3 9 6 6 7 7 6 Treads 6 | . . . 13 1 8 7 4 . 3 7 7 Wheel 18 | . 28 28 14 24 18 15 8 29 23 23 23 Device 4 | . 14 13 4 4 . 6 5 7 . . 1 Storage 10 | . 14 14 13 8 10 9 11 7 7 7 7 Processor 6 | . . . . 3 9 8 9 11 22 23 21 Protection 6 | . . . 1 13 16 8 6 7 7 7 7 Energy Gun 6 | . 8 . 8 10 9 9 5 . . . . Ballistic Gun 8 | . 19 28 4 14 17 9 4 . . . . Launcher 4 | . . . 11 . . . . 4 7 7 6 Impact Weapon 1 | . . . . . . . 3 5 6 7 4 Slashing Weapon 3 | . . . 4 . . . 5 11 7 7 6 Peak Build Rating 59 | 9 12 19 25 38 34 44 47 41 42 42 59 Average Rating 28 | 6 11 12 18 33 30 39 35 37 41 42 44 On Entrance 25 | . 9 12 14 19 31 32 31 36 41 42 42 Naked Turns . | . . . . . . . . . . . . Heaviest Build 129 | 13 15 15 59 70 35 44 104 109 104 104 129 Greatest Support 54 | 20 20 20 20 50 22 20 54 54 46 36 36 Greatest Overweight (x) 5 | 1 . 1 5 3 1 4 4 2 2 2 4 Average Overweight (x) 1 | . . . 3 . 1 1 1 1 2 2 2 Largest Inventory Capacity 25 | 8 8 8 25 25 10 10 25 25 25 25 25 Average Capacity 15 | 7 8 8 18 18 10 10 11 25 25 25 25 Most Carried 25 | 5 8 8 25 25 10 10 14 21 25 25 25 Average Carried 13 | 2 7 7 15 16 9 9 8 14 23 25 24 Final Capacity 25 | 8 8 8 25 10 10 10 25 25 25 25 25 Final Carried 25 | 5 8 8 25 10 10 9 14 21 25 25 23 Class Distribution -------------------- 32% | Mutant 17% | Scavenger-Tank 13% | Skirmisher 9% | Scavenger-Gladiator 9% | Scavenger-Mutant 8% | Derelict-Mutant 6% | Tank Dominant Class ---------------- Mutant | -10/Materials Mutant | -10/Mines Mutant | -10/Subcaves Scavenger-Tank | -8/Materials Scavenger-Tank | -8/Garrison Skirmisher | -8/Materials Skirmisher | -7/Factory Scavenger-Gladiator | -7/Lower Caves Scavenger-Mutant | -7/Lower Caves Scavenger-Mutant | -7/Data Miner Scavenger-Mutant | -6/Proximity Caves Resources | -11 -10 -10 -10 -8 -8 -8 -7 -7 -7 -7 -6 ----------- Run | Yrd Mat Min Sub Mat Gar Mat Fac Low Low Dat Pro Matter Collected 5284 | 266 50 295 910 919 866 297 894 400 259 . 128 Remotely . | . . . . . . . . . . . . Salvage Created 7086 | 130 50 235 534 1500 1000 536 1677 629 252 . 543 Parts 382 | 14 1 9 39 89 72 30 73 20 15 . 20 Haulers Intercepted 13 | . 1 . . 6 . 3 2 . . . 1 Recyclers Shooed 5 | . . . . 2 . 1 2 . . . . Parts Field Recycled . | . . . . . . . . . . . . Retrieved Matter . | . . . . . . . . . . . . Parts Self-Destructed 52 | . . . 15 . . . . 14 14 . 9 Prevented 10 | . . . 3 . . . . 4 . . 3 Kills | -11 -10 -10 -10 -8 -8 -8 -7 -7 -7 -7 -6 ------- Run | Yrd Mat Min Sub Mat Gar Mat Fac Low Low Dat Pro Combat Hostiles Destroyed 126 | . . 4 23 17 24 8 21 16 7 . 6 Melee 13 | . . . 1 . . . 6 6 . . . Guns 72 | . . 4 9 14 24 7 12 . . . 2 Cannons 6 | . . . . 2 . 1 2 . . . 1 AOE 33 | . . . 13 . . . . 10 7 . 3 Classes Destroyed 20 | 3 1 1 3 3 1 1 3 1 2 . 1 Worker 12 | 1 . . . 5 . 1 5 . . . . Builder 6 | . . . . 4 . 2 . . . . . Tunneler 4 | 3 . . . . . . 1 . . . . Hauler 13 | . 1 . . 6 . 3 2 . . . 1 Recycler 11 | 1 . 1 . 1 . . 8 . . . . Minesweeper 2 | . . . . . . . . . 2 . . Mechanic 1 | . . . . . . . 1 . . . . Operator 1 | . . . . . . 1 . . . . . Watcher 4 | . . . . 2 . 1 1 . . . . Swarmer 29 | . . . 7 . 9 3 7 . 3 . . Grunt 33 | . . 4 1 8 2 . 6 12 . . . Brawler 2 | . . . . . . . 1 1 . . . Duelist 3 | . . . . . . . . 2 . . 1 Protector 1 | . . . . . . . . . . . 1 Sentry 23 | . . . 1 6 10 3 2 1 . . . Specialist 1 | . . . . . 1 . . . . . . Hunter 10 | . . . . 3 2 2 1 . . . 2 Programmer 6 | . . . . . . . 4 . . . 2 Subdweller 14 | . . . 14 . . . . . . . . Samaritan 1 | . . . . . . . . . 1 . . Thug 4 | . . . . . . . . . 4 . . Best Kill Streak 9 | 2 1 2 4 9 4 4 5 8 4 . 7 Combat Bots Only 8 | . . 1 4 3 4 2 3 8 4 . 6 Max Kills in Single Turn 4 | 1 1 1 2 2 2 2 2 2 2 . 4 Gunslinging 1 | . . . . . 1 . . . . . . Exploded 2 | . . . 2 . . . . 2 2 . 2 Melee 1 | . . . 1 . . . 1 1 . . . Uniques/NPCs Destroyed . | . . . . . . . . . . . . Combat | -11 -10 -10 -10 -8 -8 -8 -7 -7 -7 -7 -6 -------- Run | Yrd Mat Min Sub Mat Gar Mat Fac Low Low Dat Pro Hostile Shots Fired 671 | . . 8 92 96 108 30 234 50 12 . 41 Missed 196 | . . 2 28 28 29 13 58 20 3 . 15 Hits 475 | . . 6 64 68 79 17 176 30 9 . 26 Melee 7 | . . . . . . . 1 6 . . . Projectile 468 | . . 6 64 68 79 17 175 24 9 . 26 AOE 3 | . . . 3 . . . . . . . . Critical Strikes 15 | . . . 2 2 . . 7 3 1 . . Damage Taken 7853 | . . 96 1140 976 1230 305 2281 853 273 . 699 Core 1078 | . . 14 81 133 123 15 208 209 137 . 158 Absorbed by Shields 8 | . . . . . 8 . . . . . . Ignored by Resistances 22 | . . . . . . . . . . . 22 Regen/Repaired (Parts) 172 | . . . . . . 172 . . . . . Core Remaining (%) 70 | 100 . . 62 . . 50 . . . . . Volleys Fired 354 | 17 2 14 54 81 68 37 56 11 6 . 8 Largest 3 | 2 2 2 2 3 3 3 3 2 3 . 3 Hottest 195 | 90 46 46 105 138 130 155 150 72 111 . 195 Shots Fired 750 | 18 4 25 70 204 182 75 122 19 12 . 19 Gun 614 | 18 4 25 38 179 182 59 102 . . . 7 Cannon 69 | . . . . 25 . 16 20 . . . 8 Launcher 67 | . . . 32 . . . . 19 12 . 4 Special . | . . . . . . . . . . . . Kinetic 421 | . 4 25 30 131 114 38 72 . . . 7 Thermal 221 | 17 . . 15 36 68 34 43 . . . 8 Explosive 39 | . . . 17 . . . . 10 9 . 3 Electromagnetic 69 | 1 . . 8 37 . 3 7 9 3 . 1 Robot Hit Streak 12 | 5 2 11 9 11 7 12 9 3 6 . 11 Robot Miss Streak 7 | 1 2 4 4 7 4 4 4 1 1 . 3 Penetration Max 1 | . . . . 1 . . . . . . . Secondary Targets 9 | . . . . . 6 1 2 . . . . Max Gunslinging Chain 1 | . . . . . 1 1 1 . . . . Shots Hit Robots 515 | 12 3 20 40 119 102 37 124 24 14 . 20 Core Hits 298 | 6 3 13 37 57 37 20 52 33 17 . 23 Critical Kills 1 | . . . . . . . 1 . . . . Critical Parts Destroyed 6 | . . 1 . 1 1 . 3 . . . . Critical Strikes 35 | 1 . 1 2 4 3 5 14 3 1 . 1 Burn 13 | 1 . . 1 3 2 5 1 . . . . Destroy 5 | . . 1 . 1 1 . 2 . . . . Smash 2 | . . . . . . . 2 . . . . Sever 15 | . . . 1 . . . 9 3 1 . 1 Melee Attacks 193 | . . . 37 . 10 1 101 27 7 . 10 Impact 44 | . . . . . . . 36 6 2 . . Slashing 149 | . . . 37 . 10 1 65 21 5 . 10 Piercing . | . . . . . . . . . . . . Sneak Attacks 20 | . . . 1 . . . 15 . 4 . . Combat Hostiles . | . . . . . . . . . . . . Follow-up Attacks 26 | . . . . . . . 18 8 . . . Damage Inflicted 16454 | 154 31 348 2099 2475 2051 870 3948 1789 1209 . 1480 Guns 6900 | 154 31 348 459 2073 1741 786 1234 . . . 74 Cannons 840 | . . . . 286 . 84 214 . . . 256 Explosions 4829 | . . . 1574 116 . . 18 1348 928 . 845 Melee 3885 | . . . 66 . 310 . 2482 441 281 . 305 Ramming . | . . . . . . . . . . . . Kinetic 5136 | . 31 348 1085 1336 1097 280 885 . . . 74 Thermal 3325 | 139 . . 207 638 644 552 514 . . . 631 Explosive 2650 | . . . 652 . . . . 909 781 . 308 Electromagnetic 1458 | 15 . . 89 501 . 38 67 439 147 . 162 Impact 1337 | . . . . . . . 1255 82 . . . Slashing 2548 | . . . 66 . 310 . 1227 359 281 . 305 Piercing . | . . . . . . . . . . . . Highest Corruption 8 | . . . . . . 4 7 8 8 8 8 Average Corruption 5 | . . . . . . 3 3 7 8 8 8 Corruption Purged 5 | . . . . . . . 5 . . . . Corruption Blocked . | . . . . . . . . . . . . Effects 93 | . . . . . . 19 27 23 13 2 9 Message Errors 22 | . . . . . . 3 7 5 5 . 2 Matter Fused 25 | . . . . . . 5 8 6 3 2 1 Heat Flow Errors 15 | . . . . . . 5 3 3 2 . 2 Energy Discharges 11 | . . . . . . 1 5 5 . . . Parts Rejected 1 | . . . . . . . 1 . . . . Parts Fused 1 | . . . . . . 1 . . . . . Data Loss (minor) 10 | . . . . . . 1 1 2 2 . 4 Data Loss (major) 5 | . . . . . . 1 1 2 1 . . Alerts 1 | . . . . . . . 1 . . . . Weapon Failures 2 | . . . . . . 2 . . . . . Overload Shots 1 | . . . . . . . . . . . 1 Overflow Damage 699 | . . . 15 . 82 . 516 18 31 . 37 Projectiles 6 | . . . . . . . 6 . . . . Explosions 42 | . . . 15 . . . . 15 9 . 3 Melee 651 | . . . . . 82 . 510 3 22 . 34 Knockbacks 15 | . . . . 5 . . 10 . . . . Impact 8 | . . . . . . . 8 . . . . Kinetic 7 | . . . . 5 . . 2 . . . . Secondary . | . . . . . . . . . . . . Self-Inflicted Damage 563 | . . . 73 42 . . 5 160 104 . 179 Shots 19 | . . . 3 1 . . 1 6 3 . 5 Rammed . | . . . . . . . . . . . . Targets Rammed 1 | . . . . . . . 1 . . . . Kicked . | . . . . . . . . . . . . Crushed 1 | . . . . . . . 1 . . . . Highest Temperature 483 | 90 . 4 30 402 405 414 483 183 229 . 146 Average Temperature 123 | 35 . 3 13 146 116 109 155 57 97 . 47 Received Heat Transfer 1728 | . . 54 267 342 285 27 345 207 72 . 129 Effects 26 | . . . . 16 2 . 8 . . . . Shutdowns 1 | . . . . . . . 1 . . . . Energy Bleed 2 | . . . . 2 . . . . . . . Interference 14 | . . . . 10 1 . 3 . . . . Matter Decay 3 | . . . . 2 1 . . . . . . Short Circuit 2 | . . . . 2 . . . . . . . Damage (major) 4 | . . . . . . . 4 . . . . Siege Activations . | . . . . . . . . . . . . Martial Activations . | . . . . . . . . . . . . Shielding Activations . | . . . . . . . . . . . . Robots Disrupted . | . . . . . . . . . . . . Combat Hostiles . | . . . . . . . . . . . . Robots Corrupted 3 | . . . . . . . 3 . . . . Combat Hostiles 1 | . . . . . . . 1 . . . . Parts Fried 7 | . . . . 2 . . 2 2 . . 1 Impact Corruptions 13 | . . . . . . . 12 1 . . . Robots Melted . | . . . . . . . . . . . . Combat Hostiles . | . . . . . . . . . . . . Parts Melted 14 | . . 1 1 3 4 2 2 . . . 1 Heat Transferred 6892 | 481 . . 408 1334 1358 1750 1200 . . . 361 Parts Sabotaged . | . . . . . . . . . . . . Parts Stolen . | . . . . . . . . . . . . Parts Stripped . | . . . . . . . . . . . . Power Chain Reactions 6 | . . . . 2 . . 1 1 . . 2 Alert | -11 -10 -10 -10 -8 -8 -8 -7 -7 -7 -7 -6 ------- Run | Yrd Mat Min Sub Mat Gar Mat Fac Low Low Dat Pro Maximum Alert Level 4 | . . . . 1 4 2 1 . . . . Low Security (%) 27 | 100 100 100 . 42 3 . 17 . . . . Level 1 38 | . . . . 57 14 . 82 . . . . Level 2 23 | . . . . . 38 100 . . . . . Level 3 5 | . . . . . 20 . . . . . . Level 4 5 | . . . . . 23 . . . . . . Level 5 . | . . . . . . . . . . . . High Security . | . . . . . . . . . . . . Max Security . | . . . . . . . . . . . . Peak Influence 1375 | 5 37 69 . 288 1375 686 382 . . . . Initial 670 | . 3 10 . 65 163 670 231 . . . . Average 357 | 2 5 16 . 186 709 540 236 . . . . Influence Increases 4497 | 25 37 201 280 691 1322 378 913 425 80 . 145 Destroy 0b10 Robot/C 2220 | . . 120 180 340 520 160 420 320 60 . 100 Destroy 0b10 Robot/NC 300 | 25 5 5 . 90 10 40 90 . 10 . 25 Destroy Leader 422 | . 2 30 10 116 20 68 116 30 10 . 20 Allied During Kill 73 | . . 31 . . 42 . . . . . . Trap Triggered on 0b10 30 | . . . . 20 . 10 . . . . . Successful Hack 120 | . . . . 16 37 42 25 . . . . Select Force Hacks 30 | . 30 . . . . . . . . . . Disable Machine 225 | . . . . 15 90 45 75 . . . . Anti-Garrison Action 500 | . . . . . 500 . . . . . . Destroy Structure 157 | . . . . 19 103 13 22 . . . . Partial Spotted 15 | . . . . . . . 15 . . . . Lose Combat Pursuer 405 | . . 15 90 75 . . 150 75 . . . Influence Decreases 4397 | 20 15 226 157 564 199 1243 1152 541 235 . 45 Entered New Map 1285 | . 2 17 2 60 89 705 279 101 30 . . Time Decay 2368 | 20 13 185 145 474 . 368 583 380 175 . 25 Lost Part 320 | . . . 10 30 30 20 140 60 10 . 20 Lost Ally 124 | . . 24 . . 80 . . . 20 . . Purge Threat 300 | . . . . . . 150 150 . . . . Squads Dispatched 10 | . 1 . . 1 . 1 7 . . . . Investigation 3 | . 1 . . . . . 2 . . . . Extermination 4 | . . . . . . . 4 . . . . Reinforcement 3 | . . . . 1 . 1 1 . . . . Assault . | . . . . . . . . . . . . Garrison . | . . . . . . . . . . . . Intercept . | . . . . . . . . . . . . Searches Triggered . | . . . . . . . . . . . . Construction Impeded 2 | . . . . 1 . . 1 . . . . Haulers Reinforced . | . . . . . . . . . . . . Active Scanning Responses . | . . . . . . . . . . . . Cargo Convoy Interrupts . | . . . . . . . . . . . . Stealth | -11 -10 -10 -10 -8 -8 -8 -7 -7 -7 -7 -6 --------- Run | Yrd Mat Min Sub Mat Gar Mat Fac Low Low Dat Pro Distress Signals 7 | . 1 . . 2 . . 3 . . . 1 Communications Jammed . | . . . . . . . . . . . . Distress Signals . | . . . . . . . . . . . . Times Spotted 193 | . 1 7 30 32 26 14 44 21 7 . 11 Peak Tracking Total 7 | . 3 2 5 7 4 3 7 5 4 . 7 Tactical Retreats 12 | . . 1 2 2 . . 5 2 . . . Traps | -11 -10 -10 -10 -8 -8 -8 -7 -7 -7 -7 -6 ------- Run | Yrd Mat Min Sub Mat Gar Mat Fac Low Low Dat Pro Traps Triggered 13 | . . . . . 9 4 . . . . . Indirectly . | . . . . . . . . . . . . Trap Hack Attempts . | . . . . . . . . . . . . Triggered . | . . . . . . . . . . . . Disarmed . | . . . . . . . . . . . . Reprogrammed . | . . . . . . . . . . . . Reused 5 | . . . 2 2 . 1 . . . . . Traps Extracted . | . . . . . . . . . . . . Installed 5 | . . . 2 2 . 1 . . . . . Triggered 3 | . . . . 2 . 1 . . . . . Most Traps Carried 8 | . . . 2 2 1 1 . . 8 8 8 Machines | -11 -10 -10 -10 -8 -8 -8 -7 -7 -7 -7 -6 ---------- Run | Yrd Mat Min Sub Mat Gar Mat Fac Low Low Dat Pro Machines Disabled 25 | . . . . 1 16 3 5 . . . . Max in Single Turn 2 | . . . . 1 2 1 1 . . . . Garrison Relay 6 | . . . . . 6 . . . . . . Phase Generator 1 | . . . . . 1 . . . . . . Machines Repaired . | . . . . . . . . . . . . Machines Dismantled . | . . . . . . . . . . . . Machines Sabotaged . | . . . . . . . . . . . . Overloaded Fab Kills . | . . . . . . . . . . . . Hacking | -11 -10 -10 -10 -8 -8 -8 -7 -7 -7 -7 -6 --------- Run | Yrd Mat Min Sub Mat Gar Mat Fac Low Low Dat Pro Machines Accessed 39 | . 1 1 2 10 3 7 10 1 . 4 . Terminals 18 | . . 1 . 5 3 4 5 . . . . Fabricators 1 | . . . . . . . 1 . . . . Repair Stations 5 | . . . . 2 . 2 1 . . . . Recycling Units 2 | . 1 . . 1 . . . . . . . Scanalyzers 5 | . . . . 1 . 1 3 . . . . Garrison Access 1 | . . . . 1 . . . . . . . Total Hacks 137 | . 1 3 6 34 6 26 31 1 . 29 . Successful 90 | . 1 1 6 14 3 17 18 1 . 29 . Failed 47 | . . 2 . 20 3 9 13 . . . . Catastrophic 4 | . . . . 1 . 1 2 . . . . Database Lockouts . | . . . . . . . . . . . . Manual 40 | . 1 . . 20 . 8 11 . . . . Terminals 57 | . . 3 . 22 6 11 15 . . . . Fabricators 4 | . . . . . . . 4 . . . . Repair Stations 16 | . . . . 5 . 10 1 . . . . Recycling Units 2 | . 1 . . 1 . . . . . . . Scanalyzers 19 | . . . . 3 . 5 11 . . . . Garrison Access 3 | . . . . 3 . . . . . . . Terminal Hacks 48 | . . 1 6 3 3 2 3 1 . 29 . Record 16 | . . . 5 . . . . . . 11 . Part Schematic 9 | . . . . . . . . . . 9 . Robot Schematic 6 | . . . . . . . . . . 6 . Prototype ID Bank 3 | . . . . . . . . . . 3 . Open Door 2 | . . . . . 1 . . 1 . . . Level Access Points 1 | . . . . . . 1 . . . . . Branch Access Points 1 | . . . . . . . 1 . . . . Emergency Access Points 1 | . . . . . 1 . . . . . . Terminal Index 1 | . . . . 1 . . . . . . . Unreport Threat 2 | . . . . . . 1 1 . . . . Locate Traps 2 | . . . . 1 . . 1 . . . . Dispatch Records 2 | . . 1 . 1 . . . . . . . Security Stations 1 | . . . . . 1 . . . . . . Proto ID Catalog 1 | . . . 1 . . . . . . . . Fabricator Hacks 1 | . . . . . . . 1 . . . . Load Schematic 1 | . . . . . . . 1 . . . . Repair Station Hacks 8 | . . . . 1 . 7 . . . . . Scan Component 5 | . . . . 1 . 4 . . . . . Repair 3 | . . . . . . 3 . . . . . Recycling Unit Hacks 1 | . . . . 1 . . . . . . . Report Inventory 1 | . . . . 1 . . . . . . . Scanalyzer 15 | . . . . 2 . 4 9 . . . . Insert Component 7 | . . . . 1 . 2 4 . . . . Analyze 8 | . . . . 1 . 2 5 . . . . Garrison Access Hacks 1 | . . . . 1 . . . . . . . Unlock Access 1 | . . . . 1 . . . . . . . Unauthorized Hacks 16 | . 1 . . 6 . 4 5 . . . . Terminals 15 | . . . . 6 . 4 5 . . . . Track 3 | . . . . 1 . 1 1 . . . . Botnet 11 | . . . . 4 . 3 4 . . . . Operators 1 | . . . . 1 . . . . . . . Fabricators . | . . . . . . . . . . . . Repair Stations . | . . . . . . . . . . . . Recycling Units 1 | . 1 . . . . . . . . . . Tunnel 1 | . 1 . . . . . . . . . . Scanalyzers . | . . . . . . . . . . . . Garrison Access . | . . . . . . . . . . . . Data Cores Recovered . | . . . . . . . . . . . . Used . | . . . . . . . . . . . . Hacking Detections 23 | . . 1 . 8 . 7 7 . . . . Full Trace Events 2 | . . . . . . . 2 . . . . Feedback Events . | . . . . . . . . . . . . Feedback Blocked . | . . . . . . . . . . . . Robot Schematics Acquired 6 | . . . . . . . . . . 6 . Robots Built . | . . . . . . . . . . . . Authchips . | . . . . . . . . . . . . Time . | . . . . . . . . . . . . Total Robot Build Rating . | . . . . . . . . . . . . Part Schematics Acquired 16 | . . . . 1 . 2 4 . . 9 . Parts Built . | . . . . . . . . . . . . Authchips . | . . . . . . . . . . . . Time . | . . . . . . . . . . . . Total Part Build Rating . | . . . . . . . . . . . . Parts Repaired 3 | . . . . . . 3 . . . . . Time 120 | . . . . . . 120 . . . . . Parts Recycled . | . . . . . . . . . . . . Recycled Matter . | . . . . . . . . . . . . Retrieved Matter . | . . . . . . . . . . . . Retrieved Components . | . . . . . . . . . . . . Parts Scanalyzed 7 | . . . . 1 . 2 4 . . . . Part Schematics Acquired 7 | . . . . 1 . 2 4 . . . . Parts Damaged . | . . . . . . . . . . . . Bothacking | -11 -10 -10 -10 -8 -8 -8 -7 -7 -7 -7 -6 ------------ Run | Yrd Mat Min Sub Mat Gar Mat Fac Low Low Dat Pro Used RIF Installer . | . . . . . . . . . . . . Robots Hacked . | . . . . . . . . . . . . Non-combat . | . . . . . . . . . . . . Combat . | . . . . . . . . . . . . Robot Hacks Applied . | . . . . . . . . . . . . Relay Couplers Released 27 | . . . . . 27 . . . . . . Machine Destruction 27 | . . . . . 27 . . . . . . Fabnet Peak Effective % . | . . . . . . . . . . . . Robots Rewired 6 | . . . . . 5 . . 1 . . . Allies Hacked . | . . . . . . . . . . . . Hacks Repelled . | . . . . . . . . . . . . Allies | -11 -10 -10 -10 -8 -8 -8 -7 -7 -7 -7 -6 -------- Run | Yrd Mat Min Sub Mat Gar Mat Fac Low Low Dat Pro Total Allies 12 | . . 5 . . 5 . . 1 . . 1 Largest Group 5 | . . 5 2 . 4 . . 1 1 . 1 Highest-Rated Group 96 | . . 89 32 . 79 . . 16 16 . 96 Highest-Rated Ally 96 | . . 31 16 . 31 . . 16 16 . 96 Initial Warlord ECA Mod 66 | . . . . . . 12 11 11 11 11 10 Total Orders . | . . . . . . . . . . . . Ally Attacks 66 | . . 21 11 . 28 . . . 2 . 4 Total Damage 1305 | . . 308 149 . 459 . . . . . 389 Kills 6 | . . 2 1 . 3 . . . . . . Allies Corrupted . | . . . . . . . . . . . . Allies Melted . | . . . . . . . . . . . . Intel | -11 -10 -10 -10 -8 -8 -8 -7 -7 -7 -7 -6 ------- Run | Yrd Mat Min Sub Mat Gar Mat Fac Low Low Dat Pro Active Infowar (turns) 3510 | 43 114 548 815 506 . 160 1242 82 . . . Sensors 1481 | . . . 815 506 . 160 . . . . . Terrain 1023 | 43 114 548 . . . . 318 . . . . Machine Analysis 1323 | . . . . . . . 1241 82 . . . Robot Analysis Total . | . . . . . . . . . . . . Derelict Logs Recovered 5 | . . 1 2 . . . . 2 . . . Drone Launches . | . . . . . . . . . . . . Drone Recoveries . | . . . . . . . . . . . . Exploration | -11 -10 -10 -10 -8 -8 -8 -7 -7 -7 -7 -6 ------------- Run | Yrd Mat Min Sub Mat Gar Mat Fac Low Low Dat Pro Turns Passed 11333 | 113 114 620 3242 1209 1588 857 1818 886 515 103 268 Spaces Moved 6969 | 65 120 446 2091 789 864 488 844 622 392 89 159 Core 8 | 8 . . . . . . . . . . . Treads 408 | . . . 60 2 261 28 57 . . . . Legs . | . . . . . . . . . . . . Wheels 6217 | 57 120 446 2031 787 603 460 451 622 392 89 159 Hover 336 | . . . . . . . 336 . . . . Flight . | . . . . . . . . . . . . Fastest Speed 50 | 50 80 80 80 80 95 95 90 107 115 116 116 Average Speed 123 | 82 80 80 136 99 134 118 144 115 115 116 117 Slowest Speed 460 | 95 80 95 260 460 225 330 330 120 116 116 150 Overloaded Moves . | . . . . . . . . . . . . Propulsion Burnouts . | . . . . . . . . . . . . Robots Hopped . | . . . . . . . . . . . . Potential Cave-ins 10 | . . . 5 . . . . 5 . . . Cave-ins Triggered . | . . . . . . . . . . . . Exploration Rate (%) 56 | 5 27 91 88 66 92 43 26 78 61 72 32 Regions Visited 11 Branch Regions 6 Pre-discovered Areas 4 | . 1 . 1 . . . . 1 . 1 . Known Exits Taken 3 | . . . . 1 . 1 1 . . . . Unknown Exits Taken 7 | 1 1 1 1 . . . . 1 1 1 . Scrap Searched 17 | . . 1 12 . . . . 3 1 . . Spaces Dug 40 | . . . 10 . . 4 9 6 11 . . Terrain Destroyed 688 | . . . 273 16 143 15 20 98 84 . 39 Melee 13 | . . . 2 . . 1 9 1 . . . Projectile 28 | . . . . 2 . 14 8 . . . 4 AOE 647 | . . . 271 14 143 . 3 97 84 . 35 Terrain Rammed . | . . . . . . . . . . . . Walls Destroyed . | . . . . . . . . . . . . Machines Disabled . | . . . . . . . . . . . . Actions | -11 -10 -10 -10 -8 -8 -8 -7 -7 -7 -7 -6 --------- Run | Yrd Mat Min Sub Mat Gar Mat Fac Low Low Dat Pro Total 8945 | 108 134 682 2374 1088 1182 702 1218 737 431 88 201 Wait 752 | . . 202 33 97 117 138 116 43 2 . 4 Move 6958 | 64 119 445 2090 788 863 487 843 621 391 88 159 Hop . | . . . . . . . . . . . . Pick Up 254 | 16 7 8 68 49 17 12 48 14 10 . 5 Fast Attach . | . . . . . . . . . . . . Attach 83 | 7 . 1 6 14 4 4 35 6 2 . 4 Detach 8 | . . . . . . 1 7 . . . . Swap 131 | . 2 5 35 21 10 11 17 13 10 . 7 Drop 155 | 4 4 7 49 36 14 10 21 1 5 . 4 Fire 354 | 17 2 14 54 81 68 37 56 11 6 . 8 Melee 152 | . . . 37 . 10 1 73 16 5 . 10 Ram . | . . . . . . . . . . . . Kick . | . . . . . . . . . . . . Crush 1 | . . . . . . . 1 . . . . Escape Stasis 24 | . . . . . 24 . . . . . . Rewire 67 | . . . . . 55 . . 12 . . . Trap 5 | . . . 2 2 . 1 . . . . . Miscellaneous 1 | . . . . . . . 1 . . . . Route ------- -11/Scrapyard -10/Materials -10/Mines (discovered 3 exits: [*Mat x2] / *Sub) -10/Subcaves (discovered 3 exits: *Mat x2 / [*Rec]) -8/Materials (discovered 2 exits: *Fac / Gar) -8/Garrison (discovered 4 exits: *Mat x4) -8/Materials (discovered 3 exits: *Fac x3) -7/Factory (discovered 3 exits: Sto / *Low x2) -7/Lower Caves -7/Lower Caves -7/Data Miner -6/Proximity Caves History --------- Turn | Location | Event 18 | -11/Scrapyard | Discovered new exit (range 15) 114 | -11/Scrapyard | Entered Materials 221 | -10/Materials | Discovered new exit (range 9) 228 | -10/Materials | Entered Mines 233 | -10/Mines | Assisted by bots powering up and referring to "LRC-V3" 307 | -10/Mines | Build established: Mutant 319 | -10/Mines | Met a Derelict bent on vengeance 499 | -10/Mines | Found a damaged Exp. Sensor Array with a note attached 501 | -10/Mines | Found Prototype Device 506 | -10/Mines | Learned Materials trap positions 614 | -10/Mines | Discovered new exit (range 9) 639 | -10/Mines | Discovered new exit (range 7) 782 | -10/Mines | Identified Exp. Sensor Array 820 | -10/Mines | Discovered new exit (range 10) 848 | -10/Mines | Entered Subcaves 848 | -10/Subcaves | Accompanied by 2 allies 853 | -10/Subcaves | Shifting Twisted Machinery released Shrapnel Trap 861 | -10/Subcaves | Shifting Twisted Machinery released Spk. Treads 1004 | -10/Subcaves | Ambushed by Subdweller buried in earth 1140 | -10/Subcaves | Visited 4L-MR0's lab 1213 | -10/Subcaves | A swath of the cavern ceiling suddenly collapsed 1676 | -10/Subcaves | Shifting Twisted Machinery released Sub. Laser 1721 | -10/Subcaves | Shifting Twisted Machinery released Sub. Power Source 1899 | -10/Subcaves | Visited Clippyterm 1903 | -10/Subcaves | Learned Research machine intel 1903 | -10/Subcaves | Learned Factory garrison access intel 1973 | -10/Subcaves | Disturbed a concealed Subdweller 2059 | -10/Subcaves | Discovered new exit (range 5) 2546 | -10/Subcaves | Discovered new exit (range 13) 2752 | -10/Subcaves | Disturbed a concealed Subdweller 3266 | -10/Subcaves | Discovered new exit (range 16) 3319 | -10/Subcaves | Learned Materials emergency access door positions 3575 | -10/Subcaves | Build established: Derelict-Mutant 4090 | -10/Subcaves | Entered Materials 4090 | -8/Materials | Evolved 4 slots: Propulsion x1, Utility x2, Weapon x1 4091 | -8/Materials | Loaded intel: 17 trap records 4663 | -8/Materials | Build established: Scavenger-Tank 4663 | -8/Materials | Discovered new exit (range 10) 5298 | -8/Materials | Identified exit to Garrison 5299 | -8/Materials | Entered Garrison 5321 | -8/Garrison | Triggered checkpoint 5352 | -8/Garrison | Garrison Relay disabled 5360 | -8/Garrison | Garrison Relay disabled 5369 | -8/Garrison | Triggered checkpoint 5475 | -8/Garrison | Triggered checkpoint 5513 | -8/Garrison | Triggered checkpoint 5531 | -8/Garrison | Build established: Tank 5568 | -8/Garrison | Triggered checkpoint 5663 | -8/Garrison | Discovered new exit (range 15) 5865 | -8/Garrison | Triggered checkpoint 5908 | -8/Garrison | Garrison Relay disabled 5947 | -8/Garrison | Build established: Scavenger-Tank 6119 | -8/Garrison | Phase Generator disabled 6171 | -8/Garrison | Triggered checkpoint 6212 | -8/Garrison | Discovered new exit (range 5) 6272 | -8/Garrison | Discovered new exit (range 14) 6369 | -8/Garrison | Triggered checkpoint 6393 | -8/Garrison | Garrison Relay disabled 6409 | -8/Garrison | Learned Materials security intel 6568 | -8/Garrison | Spotted B-75 Beast 6711 | -8/Garrison | Triggered checkpoint 6721 | -8/Garrison | Triggered checkpoint 6782 | -8/Garrison | Discovered new exit (range 10) 6815 | -8/Garrison | Triggered checkpoint 6831 | -8/Garrison | Garrison Relay disabled 6843 | -8/Garrison | Garrison Relay disabled 6887 | -8/Garrison | Entered Materials 7185 | -8/Materials | Build established: Skirmisher 7426 | -8/Materials | Identified exit to Factory 7639 | -8/Materials | Repaired Magnetic Acceleration Cannon 7673 | -8/Materials | Repaired Multitool 7712 | -8/Materials | Repaired Hrd. Medium Armor Plating 7744 | -8/Materials | Entered Factory 7744 | -7/Factory | Evolved 2 slots: Propulsion x1, Utility x1 7745 | -7/Factory | Loaded intel: 4 garrison access locations 8222 | -7/Factory | Lost 6 parts (1p2n1u2w) 8662 | -7/Factory | Lost 4 parts (1n3w) 8913 | -7/Factory | Build established: Mutant 9191 | -7/Factory | Identified exit to Storage 9191 | -7/Factory | Identified exit to Lower Caves 9562 | -7/Factory | Entered Lower Caves 9572 | -7/Lower Caves | Met a Warlord Commander 9573 | -7/Lower Caves | Learned location of Warlord (-4) 9574 | -7/Lower Caves | Warlord Commander delivered Encrypted Comm Array 9575 | -7/Lower Caves | Found Encrypted Comm Array 9602 | -7/Lower Caves | Build established: Scavenger-Gladiator 9692 | -7/Lower Caves | Destroyed 8 combat bots 9702 | -7/Lower Caves | Lost 4 parts (2p1n1u) 9957 | -7/Lower Caves | Attracted the attention of an 0b10 outpost 10047 | -7/Lower Caves | Learned Factory security intel 10203 | -7/Lower Caves | Core integrity fell below 50% 10303 | -7/Lower Caves | Learned Factory emergency access door positions 10405 | -7/Lower Caves | Discovered new exit (range 4) 10448 | -7/Lower Caves | Entered another Lower Caves area 10448 | -7/Lower Caves | Accompanied by 1 ally 10452 | -7/Lower Caves | Ambushed by wild Derelicts 10683 | -7/Lower Caves | Encountered a Warlord checkpoint 10766 | -7/Lower Caves | Build established: Scavenger-Mutant 10799 | -7/Lower Caves | Discovered new exit (range 9) 10963 | -7/Lower Caves | Entered Data Miner 10963 | -7/Data Miner | Discovered new exit (range 6) 10986 | -7/Data Miner | Met Data Miner 11024 | -7/Data Miner | Learned location of Section 7 (-2) 11024 | -7/Data Miner | Acquired the access code to Warlord's prototype stash 11033 | -7/Data Miner | Received God Mode back door access code from Data Miner 11066 | -7/Data Miner | Entered Proximity Caves 11185 | -6/Proximity Caves | Unaware initiated a cargo recovery operation 11286 | -6/Proximity Caves | Escorted by Enhanced Grunt 11287 | -6/Proximity Caves | Core integrity fell below 20% 11334 | -6/Proximity Caves | Destroyed by G-50 Soldier with Heavy Laser Last Messages --------------- 11318_ Slug penetrates I-36 Angel. 11318_ I-36 Angel destroyed. 11319_ Imp. VSS Leg fries itself beyond repair. 11325_ Imp. Deuterium Engine fries itself beyond repair. 11325_ The unstable cave ceiling collapses. 11325_ L-41 Fighter destroyed. 11325_ Slug penetrates Wall. 11328_ Com. Wheel fries itself beyond repair. 11328_ Acquired 73 matter. 11329_ Remote Force Field fries itself beyond repair. 11329_ Hvy. Rocket Launcher destroyed. 11330_ Com. Battery self-destruct mechanism malfunctions. 11331_ Carbon-fiber Leg fries itself beyond repair. 11332_ Corrupted Imp. Deuterium Engine fries itself beyond repair. 11333_ The unstable cave ceiling collapses. Map ----- +----------------------------------------------------+ | | | | | | | | | | | | | | | | | | | ?????????????????????????????????????????????????? | | ?????????????????????????????????????????????????? | | ?????????????????????????????????????????????????? | | ?????????????????????????????????????????????????? | | ?????????????????????????????????????????????????? | | ?????????????????????????????????????????????????? | | ?????????????????????????????????????????????????? | | ?????????????????????????????????????????????????? | | ?????????????????????????????????????????????????? | | ?????????????????????????????????????????????????? | | ?????????????????????????????????????????????????? | | ?????????????????????????????????????????????????? | | ????????????????########?????????????????????????? | | ????????????????# = ! ###???????????????????????? | | ???????????????## [!!= #####???????????????????? | | ???????????????# ! # ###?????????????????? | | ????????######## / % @ ###???????????????? | | ???????## ## %] # #???????????????? | | ??????## % %!= % ### ##???????????????? | | ??????# ! *[ % #???##????????????????? | | ??????# [ ##?????????????????????? | | ??????# #??????????????????????? | | ?????## #??????????????????????? | | ????## ##### gg # #??????????????????????? | | ???## #???# ! #??????????????????????? | | ??## ##??# g ##??????????????????????? | | ?## #???# ##???????????????????????? | | ## #???# ????????????????????????? | | #???# ## ????????????????????????? | | ### ##???# #####; ???????????????????????? | | ??# #????##?????#;# ???????????????????????? | | ???# ###?######?????# ???????????????????????? | | #????# ## ##??????????????????????????????? | | ???### #??????????????????????????????? | | ?### ## #??????????????????????????????? | | ?# ## #??????????????????????????????? | | ?# #??????????????????????????????? | | ?# #??????????????????????????????? | | ## ## ##??????????????????????????????? | | ##??#???????????????????????????????? | | ####???????????????????????????????????? | +----------------------------------------------------+ Best States ------------- Heat Dissipation 48 Energy Generation 25 Energy Capacity 500 Matter Stores 450 Matter Capacity 450 Sight Range 16 Robot Scan Range 20 Terrain Scan Range 18 Terrain Scan Density 110 Armor Coverage 450 Resistance: KI 20 Melee Speed Boost 20 Evasion (%) 50 Launcher Accuracy 20 Core Analysis 6 Recoil Reduction 2 Item Schematics ----------------- Exp. Sensor Array | -8/Materials | Scanalyzed Machine Analyzer | -8/Materials | Scanalyzed Energy Well | -8/Materials | Scanalyzed Mak. Terrain Scanner | -7/Factory | Scanalyzed Multitool | -7/Factory | Scanalyzed Huge Storage Unit | -7/Factory | Scanalyzed Core Analyzer | -7/Factory | Scanalyzed Combat Drone Bay | -7/Data Miner | Free Lgt. Regenerative Plating | -7/Data Miner | Free Cld. Aerolev Unit | -7/Data Miner | Free Thermal Defense Suite | -7/Data Miner | Free Gui. EMP Blaster | -7/Data Miner | Free Antigrav System | -7/Data Miner | Free Adv. Recoil Stabilizer | -7/Data Miner | Free Enh. Gauss Cannon | -7/Data Miner | Free Imp. Weapon Cycler | -7/Data Miner | Free Robot Schematics ------------------ G-50 Soldier | -7/Data Miner | Free M-14 Sweeper | -7/Data Miner | Free A-15 Conveyor | -7/Data Miner | Free X-67 Chaingunner | -7/Data Miner | Free D-63 Destroyer | -7/Data Miner | Free M-22 Extractor | -7/Data Miner | Free Fabricated ------------ Nothing Repaired ---------- Magnetic Acceleration Cannon | 57% | -8/Materials Multitool | 10% | -8/Materials Hrd. Medium Armor Plating | 71% | -8/Materials Alien Tech Used ----------------- None Achievements -------------- None Challenges ------------ None Game ------ Seed SmallNuclearMachine Manual? 0 Play Time 01:59:29 Cumulative 352.3 hours Start 2025.05.23 @ 12:47:53 End 2025.06.02 @ 15:44:25 Sessions 5 Manual Loads 0 Difficulty Rogue Special Mode None Game No. 396 Rogue 396 Adventurer 0 Explorer 0 Win Type - Total 6 Types 3/1/1/1/0/0/0/0/0/0 Lore% 56 Gallery% 69 Achievement% 68 Wizard Run 0 Options --------- Layout 1 ASCII 0 Keyboard 0 Movement Numpad Keybinds 0 Fullscreen 1 Font 32/SmallcapsGlow Map View 50x35 Zoom Use 0% Tactical HUD 1 Map Filters NONE Filters NONE Steam 1 RUN: 66d25256-74e5-4c35-83bc-eb4284a35205